lending/lending_fUSD_20251124
["ID","MTS","AMOUNT","RATE_DAILY","PERIOD"]
[394861797,1764025097261,-159.13170495,0.000152,2]
[394861798,1764025097295,-3104.37224507,0.000152,2]
[394861799,1764025097324,-195.0,0.00015225,2]
[394861800,1764025097352,-250.0,0.0001525,2]
[394861801,1764025097391,-500.0,0.00015299,2]
[394861802,1764025097428,-197.39669678,0.00015299,2]
[394861803,1764025097608,-1029.07700145,0.000153,2]
[394861804,1764025097635,-10000.01,0.000153,2]
[394861805,1764025103166,-10000.01,0.000153,2]
[394861806,1764025103277,-10000.01,0.000153,2]
[394861862,1764025535924,-204.844,0.00014994,2]
[394861863,1764025535947,-95.18124647,0.00014994,2]
[394861864,1764025539193,-300.0,0.00014994,2]
[394861982,1764025566607,-255.53331819,0.00014994,2]
[394861987,1764025570355,-377.80668181,0.00014994,2]
[394862032,1764025581503,-300.0,0.00014994,2]
[394862033,1764025584677,-166.66,0.00014994,2]
[394862041,1764025789976,-227.54875353,0.00014994,2]
[394862042,1764025790011,-157.5504584,0.000151,2]
[394862043,1764025790043,-159.13170495,0.00015173,2]
[394862044,1764025790073,-300.0,0.00015198,2]
[394862045,1764025790105,-500.0,0.00015199,2]
[394862046,1764025790139,-500.0,0.00015199,2]
[394862047,1764025790170,-500.0,0.00015199,2]
[394862048,1764025790199,-500.0,0.00015199,2]
[394862049,1764025790236,-500.0,0.00015199,2]
[394862050,1764025790264,-500.0,0.00015199,2]
[394862051,1764025790296,-500.0,0.00015199,2]
[394862052,1764025790329,-500.0,0.00015199,2]
[394862053,1764025790358,-14.06974188,0.00015199,2]
[394862054,1764025790496,-283.40868248,0.00015199,2]
[394862055,1764025790529,-500.0,0.00015199,2]
[394862056,1764025790559,-500.0,0.00015199,2]
[394862057,1764025790592,-500.0,0.00015199,2]
[394862058,1764025790622,-201.64841184,0.00015199,2]
[394862059,1764025790655,-500.0,0.00015199,2]
[394862060,1764025790686,-500.0,0.00015199,2]
[394862061,1764025790731,-500.0,0.00015199,2]
[394862062,1764025790764,-500.0,0.00015199,2]
[394862063,1764025790797,-500.0,0.00015199,2]
[394862064,1764025790830,-500.0,0.00015199,2]
[394862065,1764025790923,-500.0,0.00015199,2]
[394862066,1764025790957,-500.0,0.00015199,2]
[394862067,1764025790990,-500.0,0.00015199,2]
[394862068,1764025791027,-500.0,0.00015199,2]
[394862069,1764025791061,-500.0,0.00015199,2]
[394862070,1764025791095,-500.0,0.00015199,2]
[394862071,1764025791127,-500.0,0.00015199,2]
[394862072,1764025791164,-500.0,0.00015199,2]
[394862073,1764025791197,-500.0,0.00015199,2]
[394862074,1764025791230,-500.0,0.00015199,2]
[394862075,1764025791332,-500.0,0.00015199,2]
[394862076,1764025791365,-500.0,0.00015199,2]
[394862077,1764025791602,-500.0,0.00015199,2]
[394862078,1764025791638,-500.0,0.00015199,2]
[394862079,1764025791671,-500.0,0.00015199,2]
[394862080,1764025791703,-500.0,0.00015199,2]
[394862081,1764025791736,-500.0,0.00015199,2]
[394862082,1764025791769,-500.0,0.00015199,2]
[394862083,1764025791805,-500.0,0.00015199,2]
[394862084,1764025791839,-500.0,0.00015199,2]
[394862085,1764025792687,-328.25739952,0.00015199,2]
[394862086,1764025792703,-0.01,0.00015199,2]
[394862087,1764025792750,-171.73260048,0.00015199,2]
[394862088,1764025792784,-500.0,0.00015199,2]
[394862089,1764025792823,-500.0,0.00015199,2]
[394862090,1764025792856,-500.0,0.00015199,2]
[394862091,1764025792893,-500.0,0.00015199,2]
[394862092,1764025792927,-500.0,0.00015199,2]
[394862093,1764025792963,-500.0,0.00015199,2]
[394862094,1764025793001,-500.0,0.00015199,2]
[394862095,1764025793038,-500.0,0.00015199,2]
[394862096,1764025793076,-434.14992558,0.00015199,2]
[394862097,1764025793109,-288.24494788,0.00015199,2]
[394862098,1764025793178,-211.75505212,0.00015199,2]
[394862099,1764025793213,-500.0,0.00015199,2]
[394862100,1764025793248,-500.0,0.00015199,2]
[394862101,1764025793283,-500.0,0.00015199,2]
[394862102,1764025793317,-500.0,0.00015199,2]
[394862103,1764025793350,-500.0,0.00015199,2]
[394862104,1764025793384,-650.0,0.00015199,2]
[394862105,1764025793417,-500.0,0.00015199,2]
[394862106,1764025793450,-500.0,0.00015199,2]
[394862107,1764025793485,-500.0,0.00015199,2]
[394862108,1764025793584,-500.0,0.00015199,2]
[394862109,1764025793620,-500.0,0.00015199,2]
[394862110,1764025793660,-500.0,0.00015199,2]
[394862111,1764025793698,-500.0,0.00015199,2]
[394862112,1764025793733,-500.0,0.00015199,2]
[394862113,1764025793770,-500.0,0.00015199,2]
[394862114,1764025793807,-500.0,0.00015199,2]
[394862115,1764025793846,-500.0,0.00015199,2]
[394862116,1764025793888,-500.0,0.00015199,2]
[394862117,1764025793925,-153.08169517,0.000152,2]
[394862118,1764025794527,-346.91830483,0.000152,2]
[394862119,1764025794549,-153.08169517,0.000152,2]
[394862120,1764025794569,-693.84660966,0.000152,2]
[394862121,1764025794588,-10000.01,0.000152,2]
[394862122,1764025794610,-10000.01,0.000152,2]
[394862123,1764025795881,-10000.01,0.000152,2]
[394862124,1764025795992,-10000.01,0.000152,2]
[394862125,1764025796130,-10000.01,0.000152,2]
[394862126,1764025798920,-10000.01,0.000152,2]
[394862127,1764025799031,-10000.01,0.000152,2]
[394862128,1764025799151,-10000.01,0.000152,2]
[394862129,1764025799271,-10000.01,0.000152,2]
[394862130,1764025799402,-10000.01,0.000152,2]
[394862131,1764025799508,-10000.01,0.000152,2]
[394862132,1764025805322,-1081.18,0.0001519,2]
[394862133,1764025805357,-1081.18,0.0001519,2]
[394862134,1764025805391,-300.0,0.00015199,2]
[394862135,1764025805424,-1200.0,0.00015199,2]
[394862136,1764025805515,-2675.29,0.000152,2]
[394862137,1764025805548,-10000.01,0.000152,2]
[394862138,1764025805632,-10000.01,0.000152,2]
[394862139,1764025808073,-10000.01,0.000152,2]
[394862141,1764025811080,-10000.01,0.000152,2]
[394862142,1764025811207,-10000.01,0.000152,2]
[394862149,1764025814253,-10000.01,0.000152,2]
[394862150,1764025814479,-10000.01,0.000152,2]
[394862152,1764025814804,-10000.01,0.000152,2]
[394862153,1764025814963,-10000.01,0.000152,2]
[394862154,1764025815090,-10000.01,0.000152,2]
[394862157,1764025817175,-10000.01,0.000152,2]
[394862158,1764025820231,-10000.01,0.000152,2]
[394862159,1764025820405,-2830.94089515,0.000151,2]
[394862160,1764025820447,-4338.1282097,0.000152,2]
[394862161,1764025820520,-10000.01,0.000152,2]
[394862162,1764025820651,-10000.01,0.000152,2]
[394862163,1764025820784,-10000.01,0.000152,2]
[394862164,1764025820892,-10000.01,0.000152,2]
[394862166,1764025826308,-526.6879578,0.00015199,2]
[394862167,1764025826353,-8946.6340844,0.000152,2]
[394862168,1764025826427,-10000.01,0.000152,2]
[394862169,1764025826529,-10000.01,0.000152,2]
[394862170,1764025826636,-10000.01,0.000152,2]
[394862174,1764025832230,-721.59889273,0.000152,2]
[394862175,1764025832243,-3773.8207,0.000152,2]
[394862176,1764025832255,-126326.6368959,0.000152,2]
[394862177,1764025832267,-15762.34116032,0.000152,2]
[394862178,1764025832279,-22282.80409038,0.000152,2]
[394862179,1764025832375,-10000.01,0.000152,2]
[394862180,1764025832391,-1546.37607105,0.000152,2]
[394862181,1764025832403,-362.19957934,0.000152,2]
[394862182,1764025832435,-3157.84528586,0.000152,2]
[394862183,1764025832447,-250.0,0.000152,2]
[394862184,1764025832538,-10000.01,0.000152,2]
[394862185,1764025832581,-704.056,0.000152,2]
[394862196,1764025832807,-10000.01,0.000152,2]
[394862197,1764025832840,-10000.01,0.000152,2]
[394862199,1764025835532,-10000.01,0.000152,2]
[394862201,1764025838235,-895.5214939,0.000152,2]
[394862202,1764025838246,-625.97951187,0.000152,2]
[394862203,1764025838258,-846.33812054,0.000152,2]
[394862204,1764025838280,-1407.98186965,0.000152,2]
[394862205,1764025838291,-23637.39674984,0.000152,2]
[394862206,1764025838303,-605.50146086,0.000152,2]
[394862208,1764025838430,-189939.353214,0.000152,2]
[394862210,1764025838440,-2500.0,0.000152,2]
[394862212,1764025838450,-500.0,0.00015273,2]
[394862214,1764025838459,-477.88929844,0.00015299,2]
[394862216,1764025838468,-227.64,0.00015299,2]
[394862218,1764025838478,-1000.0,0.000153,2]
[394862219,1764025838487,-227.64,0.00015573,2]
[394862220,1764025838498,-500.0,0.00015821,2]
[394862221,1764025838508,-227.65,0.00015847,2]
[394862222,1764025838518,-314.42508565,0.000159,2]
[394862223,1764025838528,-314.42508563,0.000159,2]
[394862224,1764025838537,-314.42508563,0.000159,2]
[394862225,1764025838546,-510.0,0.00016323,2]
[394862226,1764025838556,-285.71622737,0.00016438,2]
[394862227,1764025838566,-500.0,0.00016438,2]
[394862228,1764025838576,-204.47108374,0.00016438,2]
[394862229,1764025838586,-163.75,0.0001644,2]
[394862230,1764025838596,-250.0,0.00016493,2]
[394862231,1764025838606,-300.0,0.00016493,2]
[394862232,1764025838615,-195.0,0.00016493,2]
[394862233,1764025838624,-300.0,0.00016493,2]
[394862234,1764025838634,-300.0,0.00016493,2]
[394862235,1764025838644,-300.0,0.0001672,2]
[394862236,1764025838655,-300.0,0.0001672,2]
[394862237,1764025838664,-250.0,0.00017,2]
[394862238,1764025838676,-175.11421792,0.0001744,2]
[394862239,1764025838686,-343.0,0.00017479,2]
[394862240,1764025838695,-343.0,0.0001754,2]
[394862241,1764025838704,-343.0,0.00017577,2]
[394862242,1764025838714,-343.0,0.00017588,2]
[394862243,1764025838724,-343.0,0.00017749,2]
[394862244,1764025838733,-343.0,0.00017934,2]
[394862245,1764025838746,-2830.94089507,0.00018079,2]
[394862246,1764025838756,-11905.41347687,0.00019,2]
[394862247,1764025838766,-500.0,0.0001905,2]
[394862248,1764025838775,-501.01450029,0.0001905,2]
[394862249,1764025838785,-500.0,0.0001905,2]
[394862250,1764025838795,-500.0,0.0001905,2]
[394862251,1764025838804,-12249.2859762,0.00019154,2]
[394862252,1764025838814,-500.0,0.00019598,2]
[394862253,1764025838823,-250.0,0.00019812,2]
[394862254,1764025838833,-163.02,0.0002,2]
[394862255,1764025838842,-703.77,0.00020145,2]
[394862256,1764025838852,-9999.99,0.00020145,2]
[394862257,1764025838861,-999.99,0.00020145,2]
[394862258,1764025838871,-713.75,0.00020145,2]
[394862259,1764025838880,-150.99,0.00020145,2]
[394862260,1764025838890,-510.05,0.00020145,2]
[394862261,1764025838899,-157.55045839,0.00020462,2]
[394862262,1764025838910,-153.08169514,0.00020541,2]
[394862263,1764025838919,-2830.94089507,0.00021057,2]
[394862264,1764025838929,-226.36377048,0.00021918,2]
[394862265,1764025838938,-361.9542374,0.00023148,2]
[394862266,1764025838948,-328.03618805,0.00023236,2]
[394862267,1764025838958,-426.8933355,0.00023692,2]
[394862268,1764025838967,-197.26,0.00023842,2]
[394862269,1764025838982,-2830.94089507,0.00024036,2]
[394862270,1764025838991,-863.354,0.00024109,2]
[394862271,1764025839002,-151.0,0.00024164,2]
[394862272,1764025839012,-151.0,0.00024164,2]
[394862273,1764025839026,-201.52154278,0.00025316,2]
[394862274,1764025839035,-157.55045839,0.00025823,2]
[394862275,1764025839044,-153.08169514,0.00025882,2]
[394862276,1764025839053,-293.384,0.00026176,2]
[394862277,1764025839065,-343.0,0.00026729,2]
[394862278,1764025839076,-574.0,0.00026793,2]
[394862279,1764025839085,-1601.0,0.00026793,2]
[394862280,1764025839096,-822.0,0.00026793,2]
[394862281,1764025839105,-659.0,0.00026793,2]
[394862282,1764025839115,-575.652,0.00026793,2]
[394862283,1764025839124,-343.0,0.00026969,2]
[394862284,1764025839134,-343.0,0.00027104,2]
[394862285,1764025839143,-343.0,0.00027131,2]
[394862286,1764025839153,-150.0,0.00027164,2]
[394862287,1764025839163,-1000.0,0.00027453,2]
[394862288,1764025839172,-343.0,0.00027525,2]
[394862289,1764025839181,-343.0,0.00027573,2]
[394862290,1764025839191,-343.0,0.00027734,7]
[394862291,1764025839200,-343.0,0.00027823,7]
[394862292,1764025839210,-343.0,0.00027871,2]
[394862293,1764025839219,-343.0,0.00028019,2]
[394862294,1764025839229,-500.0,0.00028143,5]
[394862295,1764025839239,-343.0,0.00028293,2]
[394862296,1764025839248,-2831.72,0.00028336,2]
[394862297,1764025839258,-343.0,0.00028499,2]
[394862298,1764025839268,-157.02439289,0.00028536,7]
[394862299,1764025839278,-343.0,0.00028628,2]
[394862300,1764025839288,-343.0,0.00028796,2]
[394862301,1764025839298,-343.0,0.00028857,2]
[394862302,1764025839307,-343.0,0.00029195,2]
[394862303,1764025839317,-343.0,0.00029347,2]
[394862304,1764025839327,-343.0,0.00029427,2]
[394862305,1764025839336,-343.0,0.0002943,7]
[394862306,1764025839345,-1601.0,0.00029793,2]
[394862307,1764025839355,-822.0,0.00029793,2]
[394862308,1764025839365,-608.399,0.00029793,2]
[394862309,1764025839374,-207.56,0.00030891,2]
[394862310,1764025839385,-157.55045839,0.00031185,2]
[394862311,1764025839396,-610.0,0.00031191,2]
[394862312,1764025839405,-153.08169514,0.00031222,2]
[394862313,1764025839415,-18169.99,0.00031793,2]
[394862314,1764025839424,-5028.67,0.00031858,2]
[394862315,1764025839433,-153.0,0.00031955,2]
[394862316,1764025839443,-1601.0,0.00032793,2]
[394862317,1764025839452,-822.0,0.00032793,2]
[394862318,1764025839462,-391.78170591,0.00032877,7]
[394862319,1764025839472,-500.0,0.00035616,8]
[394862320,1764025839481,-500.0,0.00035616,8]
[394862321,1764025839491,-500.0,0.00035616,8]
[394862322,1764025839501,-170.04306777,0.00035616,8]
[394862323,1764025839511,-500.0,0.00035616,8]
[394862324,1764025839520,-500.0,0.00035616,8]
[394862325,1764025839530,-190.76179979,0.00035616,8]
[394862326,1764025839539,-500.0,0.00035616,8]
[394862327,1764025839548,-553.883009,0.00035616,8]
[394862328,1764025839558,-500.0,0.00035616,8]
[394862329,1764025839568,-500.0,0.00035616,8]
[394862330,1764025839578,-500.0,0.00035616,8]
[394862331,1764025839587,-500.0,0.00035616,8]
[394862332,1764025839597,-507.27183955,0.00035616,8]
[394862333,1764025839606,-500.0,0.00035616,8]
[394862334,1764025839615,-500.0,0.00035616,8]
[394862335,1764025839624,-500.0,0.00035616,8]
[394862336,1764025839633,-500.0,0.00035616,8]
[394862337,1764025839642,-500.0,0.00035616,8]
[394862338,1764025839651,-505.41047958,0.00035616,8]
[394862339,1764025839660,-500.0,0.00035616,8]
[394862340,1764025839670,-500.0,0.00035616,8]
[394862341,1764025839679,-500.0,0.00035616,8]
[394862342,1764025839689,-632.8982154,0.00035616,8]
[394862343,1764025839699,-500.0,0.00035616,8]
[394862344,1764025839708,-500.0,0.00035616,8]
[394862345,1764025839718,-500.0,0.00035616,2]
[394862346,1764025839728,-500.0,0.00035616,8]
[394862347,1764025839737,-500.0,0.00035616,8]
[394862348,1764025839747,-1000.0,0.00035616,8]
[394862349,1764025839756,-500.0,0.00035616,8]
[394862350,1764025839765,-500.0,0.00035616,2]
[394862351,1764025839775,-500.0,0.00035616,8]
[394862352,1764025839784,-197.26,0.00035762,2]
[394862353,1764025839793,-1601.0,0.00035793,2]
[394862354,1764025839802,-822.0,0.00035793,2]
[394862355,1764025839812,-500.0,0.0003589,8]
[394862356,1764025839821,-500.0,0.0003589,8]
[394862357,1764025839830,-500.0,0.0003589,8]
[394862358,1764025839839,-500.0,0.0003589,8]
[394862359,1764025839848,-500.0,0.0003589,8]
[394862360,1764025839858,-199.0,0.0003589,7]
[394862361,1764025839868,-500.0,0.0003589,8]
[394862362,1764025839877,-500.0,0.0003589,8]
[394862363,1764025839888,-198.96,0.0003589,8]
[394862364,1764025839899,-500.0,0.0003589,8]
[394862365,1764025839908,-500.0,0.0003589,2]
[394862366,1764025839917,-500.0,0.0003589,8]
[394862367,1764025839927,-500.0,0.0003589,8]
[394862368,1764025839936,-1000.0,0.0003589,8]
[394862369,1764025839946,-283.59,0.0003589,8]
[394862370,1764025839955,-500.0,0.0003589,2]
[394862371,1764025839966,-504.3414351,0.0003589,8]
[394862372,1764025839977,-164.89619302,0.00036,5]
[394862373,1764025839987,-500.0,0.00036164,8]
[394862374,1764025839997,-500.0,0.00036164,8]
[394862375,1764025840006,-500.0,0.00036164,8]
[394862376,1764025840019,-500.0,0.00036164,8]
[394862377,1764025840030,-500.0,0.00036164,8]
[394862378,1764025840039,-276.59388554,0.00036164,8]
[394862379,1764025840049,-500.0,0.00036164,8]
[394862380,1764025840061,-279.46748818,0.00036164,8]
[394862381,1764025840070,-500.0,0.00036164,2]
[394862382,1764025840079,-537.27681599,0.00036164,8]
[394862383,1764025840089,-244.1048511,0.00036164,8]
[394862384,1764025840102,-1000.0,0.00036164,8]
[394862385,1764025840111,-448.44151921,0.00036164,2]
[394862386,1764025840120,-399.95091849,0.00036438,8]
[394862387,1764025840130,-500.0,0.00036438,8]
[394862388,1764025840139,-500.0,0.00036438,8]
[394862389,1764025840148,-642.9583551,0.00036438,8]
[394862390,1764025840158,-500.0,0.00036438,8]
[394862391,1764025840167,-199.0,0.00036438,8]
[394862392,1764025840177,-297.5,0.00036438,8]
[394862393,1764025840186,-500.0,0.00036438,2]
[394862394,1764025840197,-451.10091412,0.00036438,8]
[394862395,1764025840207,-157.55045839,0.00036546,2]
[394862397,1764025840216,-153.08169514,0.00036563,2]
[394862399,1764025840226,-500.0,0.00036712,8]
[394862401,1764025840235,-580.51159016,0.00036712,8]
[394862403,1764025840245,-500.0,0.00036712,8]
[394862405,1764025840254,-500.0,0.00036712,2]
[394862407,1764025840264,-833.5,0.00036959,30]
[394862409,1764025840274,-568.908767,0.00036986,8]
[394862411,1764025840283,-500.0,0.00036986,8]
[394862413,1764025840293,-199.0,0.00036986,9]
[394862415,1764025840303,-500.0,0.00036986,2]
[394862416,1764025840313,-500.0,0.0003726,8]
[394862417,1764025840323,-500.0,0.0003726,2]
[394862418,1764025840333,-387.37569134,0.00037534,8]
[394862419,1764025840355,-199.0,0.00037534,10]
[394862420,1764025840368,-500.0,0.00037534,2]
[394862421,1764025840378,-150.0,0.000378,7]
[394862422,1764025840388,-150.0,0.000378,7]
[394862423,1764025840397,-500.0,0.00037808,2]
[394862424,1764025840407,-1050.70274692,0.00038,2]
[394862425,1764025840416,-199.0,0.00038082,11]
[394862426,1764025840425,-539.50356895,0.00038082,2]
[394862427,1764025840434,-199.0,0.0003863,12]
[394862428,1764025840443,-413.5159,0.00038741,7]
[394862429,1764025840453,-1722.73,0.00038746,52]
[394862430,1764025840462,-1599.0,0.00038793,2]
[394862431,1764025840472,-500.0,0.00038839,120]
[394862432,1764025840481,-3721.6431,0.00038888,30]
[394862433,1764025840491,-1000.0,0.00039,2]
[394862434,1764025840503,-199.0,0.00039178,13]
[394862435,1764025840512,-1000.0,0.000392,7]
[394862436,1764025840521,-5734.0,0.00039726,5]
[394862437,1764025840530,-1000.0,0.0004,2]
[394862438,1764025840540,-2831.72,0.00040117,2]
[394862439,1764025840549,-1000.0,0.00040272,7]
[394862440,1764025840558,-1000.0,0.000405,7]
[394862441,1764025840568,-800.86086451,0.00040528,2]
[394862442,1764025840578,-572.0,0.00040717,30]
[394862443,1764025840614,-1000.0,0.0004082,7]
[394862444,1764025840623,-1000.0,0.0004082,7]
[394862445,1764025840633,-500.0,0.00040948,120]
[394862446,1764025840645,-1127.95025675,0.00040988,50]
[394862447,1764025840655,-1036.08343259,0.00040988,50]
[394862449,1764025840664,-1099.05972416,0.00040988,50]
[394862450,1764025840673,-1116.98367862,0.00040988,50]
[394862451,1764025840683,-1017.92895181,0.00040988,50]
[394862452,1764025840692,-1110.26436534,0.00040988,50]
[394862453,1764025840702,-1002.75125664,0.00040988,50]
[394862454,1764025840711,-1089.29841782,0.00040988,50]
[394862455,1764025840719,-1112.95549192,0.00040988,50]
[394862456,1764025840729,-1085.72272978,0.00040988,50]
[394862457,1764025840739,-1096.65511603,0.00040988,50]
[394862458,1764025840750,-1133.89806847,0.00040988,50]
[394862459,1764025840759,-1043.36393513,0.00040988,50]
[394862460,1764025840768,-1086.41594168,0.00040988,50]
[394862461,1764025840778,-1141.91027998,0.00040988,50]
[394862462,1764025840788,-1018.11956584,0.00040988,50]
[394862463,1764025840798,-1000.0,0.00040999,7]
[394862464,1764025840807,-1000.0,0.00040999,7]
[394862465,1764025840816,-1000.0,0.00040999,7]
[394862466,1764025840826,-155.0,0.00041,90]
[394862467,1764025840836,-1000.0,0.00041,2]
[394862468,1764025840845,-585.56520528,0.00041004,13]
[394862469,1764025840854,-585.56520522,0.00041004,13]
[394862470,1764025840863,-585.56520522,0.00041004,13]
[394862471,1764025840872,-585.56520522,0.00041004,13]
[394862472,1764025840881,-585.56520522,0.00041004,13]
[394862473,1764025840890,-585.56520522,0.00041004,13]
[394862474,1764025840900,-585.56520522,0.00041004,13]
[394862475,1764025840909,-585.56520522,0.00041004,13]
[394862476,1764025840918,-585.56520522,0.00041004,13]
[394862477,1764025840928,-585.56520522,0.00041004,13]
[394862478,1764025840938,-585.56520522,0.00041004,13]
[394862479,1764025840947,-585.56520522,0.00041004,13]
[394862480,1764025840955,-585.56520522,0.00041004,13]
[394862481,1764025840965,-585.56520522,0.00041004,13]
[394862482,1764025840974,-1000.0,0.00041032,7]
[394862483,1764025840983,-701.23,0.00041068,2]
[394862484,1764025840993,-957.74,0.00041068,2]
[394862485,1764025841003,-1000.0,0.00041094,5]
[394862486,1764025841013,-727.17,0.00041096,120]
[394862487,1764025841026,-840.0,0.000411,2]
[394862488,1764025841036,-594.0,0.000411,2]
[394862489,1764025841045,-572.0,0.00041137,30]
[394862490,1764025841055,-23493.74326335,0.00041152,120]
[394862491,1764025841193,-2830.94089507,0.00027015,2]
[394862492,1764025841202,-132061.25673665,0.00041152,120]
[394862493,1764025841211,-500.0,0.00041173,8]
[394862494,1764025841220,-1000.0,0.00041173,10]
[394862495,1764025841229,-150.0,0.00041252,10]
[394862496,1764025841238,-150.0,0.00041252,10]
[394862497,1764025841247,-150.0,0.00041252,10]
[394862498,1764025841256,-150.0,0.00041252,10]
[394862499,1764025841265,-150.0,0.00041252,10]
[394862500,1764025841274,-150.0,0.00041252,10]
[394862501,1764025841283,-150.0,0.00041252,10]
[394862502,1764025841292,-150.0,0.00041252,10]
[394862503,1764025841301,-150.0,0.00041252,10]
[394862504,1764025841310,-150.0,0.00041252,10]
[394862505,1764025841319,-150.0,0.00041252,10]
[394862506,1764025841328,-150.0,0.00041252,10]
[394862507,1764025841337,-150.0,0.00041252,10]
[394862508,1764025841346,-150.0,0.00041252,10]
[394862509,1764025841355,-150.0,0.00041252,10]
[394862510,1764025841364,-150.0,0.00041252,10]
[394862511,1764025841373,-150.0,0.00041252,10]
[394862512,1764025841381,-150.0,0.00041252,10]
[394862513,1764025841391,-150.0,0.00041252,10]
[394862514,1764025841399,-150.0,0.00041252,10]
[394862515,1764025841409,-150.0,0.00041252,10]
[394862516,1764025841418,-150.0,0.00041252,10]
[394862517,1764025841427,-150.0,0.00041252,10]
[394862518,1764025841436,-150.0,0.00041252,10]
[394862519,1764025841446,-150.0,0.00041252,10]
[394862520,1764025841456,-150.0,0.00041252,10]
[394862521,1764025841465,-150.0,0.00041252,10]
[394862522,1764025841475,-150.0,0.00041252,10]
[394862523,1764025841483,-150.0,0.00041252,10]
[394862524,1764025841493,-150.0,0.00041252,10]
[394862525,1764025841502,-150.0,0.00041252,10]
[394862526,1764025841511,-150.0,0.00041252,10]
[394862527,1764025841520,-150.0,0.00041252,10]
[394862528,1764025841529,-150.0,0.00041252,10]
[394862529,1764025841538,-150.0,0.00041252,10]
[394862530,1764025841546,-150.0,0.00041252,10]
[394862531,1764025841555,-150.0,0.00041252,10]
[394862532,1764025841564,-150.0,0.00041252,10]
[394862533,1764025841573,-150.0,0.00041252,10]
[394862534,1764025841582,-150.0,0.00041252,10]
[394862535,1764025841591,-150.0,0.00041252,10]
[394862536,1764025841599,-150.0,0.00041252,10]
[394862537,1764025841609,-150.0,0.00041252,10]
[394862538,1764025841617,-150.0,0.00041252,10]
[394862539,1764025841626,-150.0,0.00041252,10]
[394862540,1764025841637,-150.0,0.00041252,10]
[394862541,1764025841646,-150.0,0.00041252,10]
[394862542,1764025841655,-150.0,0.00041252,10]
[394862543,1764025841664,-150.0,0.00041252,10]
[394862544,1764025841672,-150.0,0.00041252,10]
[394862545,1764025841681,-203.88,0.00041252,10]
[394862546,1764025841691,-1000.0,0.00041368,7]
[394862547,1764025841700,-426.8933355,0.00041521,10]
[394862548,1764025841709,-572.0,0.00041557,30]
[394862549,1764025841719,-972.26763417,0.00041584,10]
[394862550,1764025841729,-1000.0,0.00041642,7]
[394862551,1764025841739,-175.11421792,0.00041699,17]
[394862552,1764025841748,-422.56424453,0.00041738,28]
[394862553,1764025841757,-422.56424447,0.00041766,28]
[394862554,1764025841766,-41585.9504589,0.00041771,2]
[394862555,1764025841775,-1000.0,0.0004178,2]
[394862556,1764025841784,-1000.0,0.00041781,2]
[394862557,1764025841793,-500.0,0.00041781,120]
[394862558,1764025841802,-150.61,0.00041788,2]
[394862559,1764025841811,-150.61,0.00041788,2]
[394862560,1764025841820,-500.0,0.00041793,120]
[394862561,1764025841829,-422.56424447,0.00041794,28]
[394862562,1764025841838,-494296.04629895,0.00041798,30]
[394862563,1764025841850,-2666.05555921,0.00041798,30]
[394862564,1764025841860,-954.45128865,0.00041798,30]
[394862580,1764025846233,-2566.97752025,0.00029993,2]
[394862583,1764025846358,-263.96337482,0.00029993,2]